[Event "DFMM-LV 2023"]
[Site "Braunfels"]
[Date "2023.06.11"]
[Round "5.16"]
[White "Eue, Vicky"]
[Black "Freter, Anke"]
[Result "0-1"]
[Annotator "NA RC COMBH"]
[ECO "B20"]
[WhiteElo "1682"]
[BlackElo "1855"]
[PlyCount "162"]
[EventDate "2023.06.09"]
[EventType "team-tourn"]
[EventCountry "GER"]
[SourceTitle "playchess.com"]
[Source "ChessBase"]
[SourceQuality "1"]
[TimeControl "40/5400+30:1800+30"]

1. e4 {[%emt 0:00:06]} c5 {[%emt 0:00:07]} 2. b3 {[%emt 0:00:15]} Nc6 {[%emt 0:00:32]} 3. Bb2 {[%emt 0:00:35]} d6 {[%emt 0:05:44]} 4. Nc3 {[%emt 0:04:07]} Nf6 {[%emt 0:02:01]} 5. Bc4 {[%emt 0:04:54]} a6 {[%emt 0:03:05]} 6. a4 {[%emt 0:02:48]} Bd7 {[%emt 0:01:47]} 7. Nge2 {[%emt 0:02:37]} e6 {[%emt 0:06:23]} 8. d4 {[%emt 0:08:21]} cxd4 {[%emt 0:01:23]} 9. Nxd4 {[%emt 0:00:15]} Qb6 {[%emt 0:03:33]} 10. Nf3 {[%emt 0:06:43]} Ng4 {[%emt 0:09:34]} 11. Qe2 {[%emt 0:02:16]} Nge5 {[%emt 0:02:09]} 12. Nxe5 {[%emt 0:09:02]} Nxe5 {[%emt 0:02:56]} 13. O-O {[%emt 0:02:53]} Nxc4 {[%emt 0:01:31]} 14. Qxc4 {[%emt 0:00:08]} Bc6 {[%emt 0:05:35]} 15. a5 {[%emt 0:02:01]} Qc5 {[%emt 0:02:43]} 16. Qxc5 {[%emt 0:02:29]} dxc5 {[%emt 0:00:03]} 17. Rfe1 {[%emt 0:04:39]} Rd8 {[%emt 0:01:54]} 18. Rad1 {[%emt 0:03:37]} Be7 {[%emt 0:02:16]} 19. Rxd8+ {[%emt 0:00:37]} Bxd8 {[%emt 0:00:19]} 20. Ra1 {[%emt 0:05:43]} O-O {[%emt 0:02:44]} 21. f3 {[%emt 0:00:44]} Be7 {[%emt 0:02:02]} 22. Ba3 {[%emt 0:02:18]} Bf6 {[%emt 0:01:02]} 23. Bb2 {[%emt 0:00:40]} Rd8 {[%emt 0:00:14]} 24. Rd1 {[%emt 0:00:19]} Kf8 {[%emt 0:08:20]} 25. e5 {[%emt 0:02:09]} Be7 {[%emt 0:01:41]} 26. Rxd8+ {[%emt 0:02:25]} Bxd8 {[%emt 0:00:01]} 27. Ba3 {[%emt 0:00:15]} Bxa5 {[%emt 0:00:39]} 28. Bxc5+ {[%emt 0:00:06]} Ke8 {[%emt 0:00:20]} 29. Ne2 {[%emt 0:00:34]} Bc7 {[%emt 0:03:14]} 30. Bd4 {[%emt 0:00:54]} b6 {[%emt 0:03:45]} 31. Kf2 {[%emt 0:00:19]} Ke7 {[%emt 0:00:24]} 32. g3 {[%emt 0:00:52]} f6 {[%emt 0:00:52]} 33. f4 {[%emt 0:01:20]} Be4 {[%emt 0:00:22]} 34. c3 {[%emt 0:00:58]} Bc2 {[%emt 0:00:57]} 35. b4 {[%emt 0:00:49]} a5 {[%emt 0:01:32]} 36. bxa5 {[%emt 0:00:50]} bxa5 {[%emt 0:00:02]} 37. exf6+ {[%emt 0:00:15]} gxf6 {[%emt 0:00:15]} 38. Bc5+ {[%emt 0:00:06]} Bd6 {[%emt 0:02:07]} 39. Bxd6+ {[%emt 0:00:13]} Kxd6 {[%emt 0:00:02]} 40. Nd4 {[%emt 0:01:43]} Bd3 {[%emt 0:00:51]} 41. Ke3 {[%emt 0:30:23]} Bc4 {[%emt 0:30:40]} 42. Nc2 {[%emt 0:01:33]} Kd5 {[%emt 0:00:57]} 43. g4 {[%emt 0:01:22]} Bb3 {[%emt 0:01:48]} 44. Na3 {[%emt 0:00:46]} Bd1 {[%emt 0:03:16]} 45. h3 {[%emt 0:01:53]} h6 {[%emt 0:00:26]} 46. Kd3 {[%emt 0:00:41]} Bf3 {[%emt 0:01:32]} 47. Ke3 {[%emt 0:01:18]} Bg2 {[%emt 0:00:49]} 48. h4 {[%emt 0:00:15]} Bh3 {[%emt 0:04:56]} 49. g5 {[%emt 0:01:45]} hxg5 {[%emt 0:00:02]} 50. hxg5 {[%emt 0:00:37]} fxg5 {[%emt 0:00:22]} 51. fxg5 {[%emt 0:00:46]} Bf5 {[%emt 0:00:37]} 52. Kf4 {[%emt 0:02:06]} Bg6 {[%emt 0:00:59]} 53. Ke3 $15 {[%emt 0:03:00]} a4 {[%emt 0:02:36]} 54. Kf4 {[%emt 0:03:55]} e5+ {[%emt 0:03:27]} 55. Ke3 {[%emt 0:00:09]} Ke6 {[%emt 0:00:14]} 56. Nc4 {[%emt 0:03:51]} Kf5 {[%emt 0:01:32]} 57. Kd2 {[%emt 0:01:50]} Kf4 {[%emt 0:02:00]} 58. Kc1 {[%emt 0:01:30]} e4 {[%emt 0:00:18]} 59. Nb6 {[%emt 0:02:54]} a3 {[%emt 0:02:06]} 60. Nc4 {[%emt 0:00:07]} a2 {[%emt 0:00:23]} 61. Kb2 {[%emt 0:00:18]} Kxg5 {[%emt 0:00:31]} 62. Ne3 {[%emt 0:00:45]} Bf7 {[%emt 0:00:28]} 63. Ng2 {[%emt 0:05:28]} Kg4 {[%emt 0:01:16]} 64. c4 {[%emt 0:00:56]} Kf3 {[%emt 0:01:25]} 65. Nh4+ {[%emt 0:01:37]} Kg4 {[%emt 0:01:07]} 66. Ng2 {[%emt 0:00:12]} Kf3 {[%emt 0:00:18]} 67. Nh4+ {[%emt 0:00:08]} Kf2 {[%emt 0:00:30]} 68. Nf5 {[%emt 0:00:00]} Be6 {[%emt 0:00:00]} 69. Nd6 {[%emt 0:00:00]} e3 {[%emt 0:00:00]} 70. Ne4+ {[%emt 0:00:00]} Kg1 {[%emt 0:00:00]} 71. Nc3 {[%emt 0:00:00]} Bxc4 {[%emt 0:00:00]} 72. Ka1 {[%emt 0:00:00]} Kf1 {[%emt 0:00:00]} 73. Kb2 {[%emt 0:00:00]} Ke1 {[%emt 0:00:00]} 74. Ne4 {[%emt 0:00:00]} Be6 {[%emt 0:00:00]} 75. Nc3 {[%emt 0:00:00]} Kd2 {[%emt 0:00:00]} 76. Ne4+ {[%emt 0:00:00]} Kd3 {[%emt 0:00:00]} 77. Nc5+ {[%emt 0:00:29]} Kc4 {[%emt 0:00:00]} 78. Nb3 {[%emt 0:01:40]} e2 {[%emt 0:00:00]} 79. Nd2+ {[%emt 0:00:07]} Kd3 {[%emt 0:00:00]} 80. Nf3 {[%emt 0:00:17]} Bd5 {[%emt 0:00:00]} 81. Ne1+ {[%emt 0:02:18]} Kd2 {[%emt 0:00:00]} 0-1

[Event "DFMM-LV 2023"]
[Site "Braunfels"]
[Date "2023.06.11"]
[Round "5.17"]
[White "Rieseler, Caroline"]
[Black "Birkholz, Olga"]
[Result "1/2-1/2"]
[Annotator "TA"]
[ECO "B90"]
[WhiteElo "2126"]
[BlackElo "2005"]
[PlyCount "82"]
[EventDate "2023.06.09"]
[EventType "team-tourn"]
[EventCountry "GER"]
[SourceTitle "playchess.com"]
[Source "ChessBase"]
[SourceQuality "1"]
[TimeControl "40/5400+30:1800+30"]

{[%evp 13,82,8,52,22,41,30,27,35,50,29,25,21,33,24,33,0,0,0,-2,-7,0,0,108,101,100,87,95,30,42,0,0,-36,0,-52,-62,-135,-82,-92,-90,-80,-30,-45,0,-12,0,-130,-116,-118,-108,-149,-158,-162,-166,-168,0,0,0,-168,0,0,0,0,0,0,0,0,0,0,0,0,0]} 1. e4 {[%emt 0:00:04]} c5 {[%emt 0:00:01]} 2. Nf3 {[%emt 0:00:45]} d6 {[%emt 0:00:06]} 3. d4 {[%emt 0:00:11]} cxd4 {[%emt 0:00:01]} 4. Nxd4 {[%emt 0:00:07]} Nf6 {[%emt 0:00:01]} 5. Nc3 {[%emt 0:00:13]} a6 {[%emt 0:00:02]} 6. Be3 {[%emt 0:00:24]} e5 {[%emt 0:01:19]} 7. Nf3 {[%emt 0:00:05]} b5 {[%emt 0:00:17]} 8. Nd5 {[%emt 0:01:42] B90: Sicilian Najdorf: Unusual White 6th moves, 6 Be3 Ng4 and 6 Be3 e5.} Nbd7 {[%emt 0:00:15]} 9. c4 {[%emt 0:16:53]} bxc4 {[%emt 0:15:17]} 10. Bxc4 {[%emt 0:07:06] [#] White has an edge.} Be7 $146 {[%emt 0:09:28]} ({Predecessor:} 10... Bb7 11. Ng5 Bxd5 12. Bxd5 {1-0 Bares,J (2103)-Palla,S (1683) Valasska Bystrice op 13th 2022 (3)}) 11. O-O {[%emt 0:03:16]} O-O {[%emt 0:00:10]} 12. Qd3 {[%emt 0:01:51]} Nxd5 {[%emt 0:02:31]} 13. Bxd5 {[%emt 0:01:17]} Rb8 {[%emt 0:00:11]} 14. Ba7 {[%emt 0:14:45]} Rxb2 {[%emt 0:02:25]} 15. Qc3 {[%emt 0:01:04]} Rb5 {[%emt 0:02:29] next ...Nf6 is good for Black.} 16. a4 {[%emt 0:03:33] [#]} Rxd5 {[%emt 0:00:32][%mdl 64] Deflection} 17. exd5 {[%emt 0:00:13]} f5 {[%emt 0:00:04]} (17... Bb7 $11) 18. Rab1 $16 {[%emt 0:03:19]} Qe8 {[%emt 0:02:10]} 19. a5 {[%emt 0:06:00] White has more active pieces.} Qh5 {[%emt 0:00:49]} 20. Rb3 {[%emt 0:11:24]} (20. Qc4 $16) 20... Nf6 $1 $11 {[%emt 0:06:04]} 21. Qd2 {[%emt 0:05:18]} (21. Qc4 $5 {[%cal Rf3e5]}) 21... f4 {[%emt 0:01:51]} 22. Ne1 {[%emt 0:13:28]} Ne4 {[%emt 0:06:09]} 23. Qc2 {[%emt 0:03:38]} (23. Qb4 $11 Nf6 24. Qc4) 23... Bf5 $1 $36 {[%emt 0:03:07][%mdl 2048] ...Nc5 is the strong threat. Black is pushing.} 24. Qc7 {[%emt 0:00:33]} (24. Rb2 $15) 24... Bd8 {[%emt 0:00:22]} (24... Nd2 $142 $1 {Hoping for ...Qe2.} 25. Rb2 Bd8 26. Qxd6 Nc4) 25. Qc1 $17 {[%emt 0:02:57]} Bxa5 {[%emt 0:04:16]} 26. Nf3 {[%emt 0:00:41] Inhibits Nd2.} Bg4 {[%emt 0:00:53]} (26... Qf7 $17 27. Qa3 Qxd5) 27. Qa3 $1 $11 {[%emt 0:00:40]} Bd8 {[%emt 0:00:35] ...Bxf3 would be deadly.} 28. Qxa6 {[%emt 0:00:25]} Qg6 {[%emt 0:00:19] White must now prevent ...Bh3.} 29. Nxe5 {[%emt 0:00:38]} dxe5 $17 {[%emt 0:00:17]} 30. Qxg6 {[%emt 0:00:07]} hxg6 {[%emt 0:00:01]} 31. Re1 {[%emt 0:01:39]} Bf5 {[%emt 0:03:57]} 32. f3 {[%emt 0:00:18]} Nd2 {[%emt 0:00:13]} 33. Rb7 {[%emt 0:00:47] [#]} Nc4 $2 {[%emt 0:00:58]} (33... Bf6 $1 $19 {Strongly threatening ...g5.} 34. Bc5 Rc8) 34. Bc5 $11 {[%emt 0:00:17]} Re8 {[%emt 0:01:15]} 35. Ra1 $2 {[%emt 0:00:19] [#]} (35. Rc1 $11 Ne3 36. g4) 35... Bc8 $2 {[%emt 0:01:12]} (35... Bf6 $1 $19 {Threatens to win with ...e4.} 36. Rba7 e4) 36. Rb4 {[%emt 0:00:28] The position is equal.} Ne3 {[%emt 0:01:41]} 37. Ra8 {[%emt 0:00:08]} Nxd5 {[%emt 0:00:28]} 38. Rbb8 {[%emt 0:00:06]} (38. Rxc8 $2 {loses.} Nxb4 39. Rxd8 Rxd8 $19) 38... Nc7 $1 {[%emt 0:01:51]} (38... Be7 $2 39. Bf2 $18 (39. Rxc8 Bxc5+ 40. Rxc5 Rxa8 $15)) 39. Rxc8 {[%emt 0:00:14]} Nxa8 {[%emt 0:00:06]} 40. Rxa8 {[%emt 0:00:07]} Kf7 {[%emt 0:00:58][%cal Od8b6]} 41. Kf1 {[%emt 0:30:31]} Be7 {[%emt 1:06:19] An exciting game.   Weighted Error Value: White=0.27 (precise) /Black=0.23 (precise)} 1/2-1/2

[Event "DFMM-LV 2023"]
[Site "Braunfels"]
[Date "2023.06.11"]
[Round "5.18"]
[White "Stangl, Anita"]
[Black "Geske, Bruna"]
[Result "1/2-1/2"]
[Annotator "TA"]
[ECO "B33"]
[WhiteElo "2009"]
[BlackElo "2054"]
[PlyCount "29"]
[EventDate "2023.06.09"]
[EventType "team-tourn"]
[EventCountry "GER"]
[SourceTitle "playchess.com"]
[Source "ChessBase"]
[SourceQuality "1"]
[TimeControl "40/5400+30:1800+30"]

{[%evp 18,29,0,0,0,0,25,22,43,39,40,0,42,0]} 1. e4 {[%emt 0:00:01]} c5 {[%emt 0:00:04]} 2. Nf3 {[%emt 0:00:11]} Nc6 {[%emt 0:00:11]} 3. d4 {[%emt 0:00:25]} cxd4 {[%emt 0:00:06]} 4. Nxd4 {[%emt 0:00:05]} Nf6 {[%emt 0:00:07]} 5. Nc3 {[%emt 0:00:19]} e5 {[%emt 0:00:07]} 6. Nf5 {[%emt 0:00:15]} d5 {[%emt 0:02:14]} 7. exd5 {[%emt 0:00:50]} Bxf5 {[%emt 0:00:12]} 8. dxc6 {[%emt 0:00:13]} bxc6 {[%emt 0:00:05]} 9. Qf3 {[%emt 0:06:49]} Qd7 {[%emt 0:01:50]} 10. Bc4 {[%emt 0:10:26]} Bxc2 {[%emt 0:06:47] B33: Sicilian: Pelikan and Sveshnikov Variations.} 11. O-O {[%emt 0:02:49] [#]} e4 $146 {[%emt 0:15:43]} (11... Be7 $5 {[%cal Re5e4]}) ({Predecessor:} 11... Be7 12. Qe2 Bg6 13. Qxe5 O-O 14. Rd1 Qb7 15. Qg3 Rfd8 16. Rxd8+ Rxd8 17. Bb3 c5 18. h3 Bd6 19. Bf4 Nh5 20. Qh4 Be7 21. Bg5 Rd4 22. g4 Nf4 23. Nd5 Bxg5 24. Qxg5 Nxh3+ {0-1 Zelcic,R (2547)-Saric,I (2607) Stari Mikanovci Jaric Memorial rapid 2010 (7)}) 12. Qg3 {[%emt 0:06:34][%mdl 1024] Threatening Re1. White has compensation.} (12. Qe2 $5 Bd3 $8 13. Bxd3 Qxd3 14. Re1 Qxe2 15. Rxe2 $11) 12... Qg4 {[%emt 0:09:11]} 13. Qc7 {[%emt 0:01:33][%csl Gc7][%cal Rc4f7] [#]} Qd7 {[%emt 0:00:40]} 14. Qg3 {[%emt 0:00:08] And now Re1 would win.} Qg4 {[%emt 0:00:51]} 15. Qc7 {[%emt 0:00:09] White got outplayed after the opening.   Weighted Error Value: White=0.11 (very precise) /Black=0.11 (very precise)} 1/2-1/2

[Event "DFMM-LV 2023"]
[Site "Braunfels"]
[Date "2023.06.11"]
[Round "5.19"]
[White "Barpiyeva, Gulsana"]
[Black "Braun, Kristin"]
[Result "1/2-1/2"]
[Annotator "TA"]
[ECO "A36"]
[WhiteElo "2023"]
[BlackElo "1875"]
[PlyCount "76"]
[EventDate "2023.06.09"]
[EventType "team-tourn"]
[EventCountry "GER"]
[SourceTitle "playchess.com"]
[Source "ChessBase"]
[SourceQuality "1"]
[TimeControl "40/5400+30:1800+30"]

{[%evp 17,76,10,8,2,22,14,20,20,23,0,5,1,10,0,0,0,16,0,0,0,0,-98,-96,-415,-419,-764,-726,-840,-177,-172,-177,-183,-172,-169,-175,-174,-170,-170,-173,-178,-186,-171,-162,-181,-97,-173,-171,-168,-168,-168,-160,-160,-140,-152,-151,-143,0,-139,0,-123,-118]} 1. c4 {[%emt 0:00:07]} Nf6 {[%emt 0:00:03]} 2. Nc3 {[%emt 0:00:09]} g6 {[%emt 0:00:06]} 3. g3 {[%emt 0:00:06]} Bg7 {[%emt 0:00:04]} 4. Bg2 {[%emt 0:00:07]} d6 {[%emt 0:00:06]} 5. d3 {[%emt 0:00:11]} O-O {[%emt 0:00:09]} 6. e4 {[%emt 0:00:36]} c5 {[%emt 0:01:15]} 7. Nge2 {[%emt 0:00:23]} Nc6 {[%emt 0:00:41]} 8. O-O {[%emt 0:00:33]} Bd7 {[%emt 0:10:27]} 9. h3 {[%emt 0:04:33]} Ne8 {[%emt 0:13:27][%cal Bf6e8,Be8c7,Bc7e6,Be6d4][%mdl 32]} 10. f4 {[%emt 0:02:01] A36: Symmetrical English vs ...g6: 4 Bg2 Bg7.} Qc8 {[%emt 0:04:38]} 11. Kh2 {[%emt 0:00:21]} Nc7 {[%emt 0:01:49]} 12. Be3 {[%emt 0:06:30] The position is equal.} Ne6 {[%emt 0:07:03] [#]} 13. f5 $146 {[%emt 0:07:43]} ({Predecessor:} 13. Qd2 Ned4 14. Nd5 Qd8 15. f5 Nxe2 16. Qxe2 e6 17. fxe6 Bxe6 18. Qd2 Qa5 19. Rf2 Qxd2 20. Rxd2 Bxd5 21. exd5 {½-½ Pottinger,C (1869)-Czarny,K (1655) Winnipeg Yanofsky Memorial 2012 (5)}) 13... Ned4 {[%emt 0:01:32]} 14. g4 {[%emt 0:00:28]} Be5+ {[%emt 0:14:07]} 15. Kh1 {[%emt 0:00:38]} Nxe2 {[%emt 0:01:12]} 16. Qxe2 {[%emt 0:00:42]} Nd4 {[%emt 0:00:55]} 17. Qf2 {[%emt 0:01:04]} f6 $1 {[%emt 0:07:11]} 18. Nd5 {[%emt 0:05:08]} Rf7 {[%emt 0:00:17]} 19. fxg6 {[%emt 0:00:59]} (19. b4 $11) 19... hxg6 $17 {[%emt 0:00:11][%cal Od7g4] aiming for ...Bxg4!} 20. g5 {[%emt 0:23:45][%mdl 8192]} (20. Bf4 $17 {is more resistant.}) 20... Bxh3 $19 {[%emt 0:11:45] ...Rh7 would be deadly.} 21. gxf6 {[%emt 0:01:57]} (21. Qh4 $142 Qg4 22. Qxg4 (22. Qxh3 $2 Rh7 $19 {[%mdl 64] Pin}) 22... Bxg4 23. Rf2) 21... Qg4 {[%emt 0:01:43]} (21... exf6 $2 {perishes.} 22. Bf4 Be6 23. Bxe5 dxe5 24. Nc3 $19) 22. Nxe7+ {[%emt 0:01:28] [#]} Rxe7 $2 {[%emt 0:04:45]} 23. fxe7 {[%emt 0:02:40] White wants to mate with Qf8+.} Bxg2+ {[%emt 0:00:09]} 24. Qxg2 {[%emt 0:00:12]} Qh5+ {[%emt 0:00:14]} 25. Kg1 {[%emt 0:01:26] Rf2 is the strong threat.} Ne2+ {[%emt 0:00:10][%mdl 64] Discovered Attack} 26. Kf2 {[%emt 0:00:48]} Bg3+ {[%emt 0:00:19]} (26... Bxb2 $2 27. Rh1 Kf7 28. Rxh5 $18) 27. Qxg3 {[%emt 0:00:36]} Nxg3 {[%emt 0:00:01]} 28. Kxg3 {[%emt 0:00:02] [#]} Qe5+ {[%emt 0:02:18]} 29. Bf4 {[%emt 0:03:50]} Qxe7 {[%emt 0:00:13] Threatens to win with ...g5.} ({Inferior is} 29... Qxb2 30. Bxd6 Kg7 31. Rf8 $11 (31. Bxc5 $2 {is the wrong capture.} Qe5+ 32. Kg2 Qg5+ 33. Kf3 Qxc5 $19)) 30. Rf2 {[%emt 0:07:54]} Kg7 {[%emt 0:03:30]} ({Black should try} 30... Rf8 $19 {White must now prevent ...g5.} 31. Raf1 a6) 31. Rh1 {[%emt 0:01:30] [#]} (31. Raf1 $17) 31... Rh8 $1 {[%emt 0:04:18]} 32. Rxh8 {[%emt 0:00:46]} Kxh8 {[%emt 0:00:00][%mdl 4096] Endgame KQ-KRB} 33. Kg4 {[%emt 0:03:07]} Kg7 {[%emt 0:03:16]} 34. b3 {[%emt 0:02:22]} Qd7+ {[%emt 0:01:37]} 35. Kg3 {[%emt 0:00:41]} Qd8 {[%emt 0:01:29]} 36. Kg4 {[%emt 0:00:40]} Qd7+ {[%emt 0:01:54]} 37. Kg3 $1 {[%emt 0:00:11]} Qd8 {[%emt 0:01:07]} 38. Kg4 {[%emt 0:00:21]} a6 {[%emt 0:05:29] An interesting game.   Weighted Error Value: White=0.56/Black=0.35} 1/2-1/2

[Event "DFMM-LV 2023"]
[Site "Braunfels"]
[Date "2023.06.11"]
[Round "5.20"]
[White "Dirmeier, Carolin"]
[Black "Lukas, Anne"]
[Result "1-0"]
[Annotator "TA"]
[ECO "B01"]
[WhiteElo "1941"]
[BlackElo "2057"]
[PlyCount "79"]
[EventDate "2023.06.09"]
[EventType "team-tourn"]
[EventCountry "GER"]
[SourceTitle "playchess.com"]
[Source "ChessBase"]
[SourceQuality "1"]
[TimeControl "40/5400+30:1800+30"]

{[%evp 14,79,41,41,39,48,40,33,47,14,12,4,18,13,35,42,52,34,69,70,75,76,88,81,93,86,100,86,143,143,276,198,202,214,205,193,208,221,420,422,432,432,407,408,392,371,524,346,332,298,279,236,282,249,330,342,320,318,451,420,560,554,615,637,972,574,2691,2501]} 1. e4 {[%emt 0:00:03]} d5 {[%emt 0:00:14]} 2. exd5 {[%emt 0:00:07]} Nf6 {[%emt 0:00:08]} 3. Bb5+ {[%emt 0:01:51]} Bd7 {[%emt 0:00:16]} 4. Bc4 {[%emt 0:00:07]} Bg4 {[%emt 0:00:13]} 5. f3 {[%emt 0:01:48]} Bc8 {[%emt 0:00:09]} 6. Nc3 {[%emt 0:06:28]} Nbd7 {[%emt 0:00:28]} 7. d4 {[%emt 0:03:20]} Nb6 {[%emt 0:00:05]} 8. Bb3 {[%emt 0:02:05]} a5 {[%emt 0:00:06][%cal Oa5a4] [#] Strongly threatening ...a4! B01: Scandinavian Defence.} 9. a3 $1 {[%emt 0:02:08]} a4 {[%emt 0:00:05]} 10. Ba2 {[%emt 0:00:07]} Nbxd5 {[%emt 0:00:03] White is slightly better.} 11. Nge2 {[%emt 0:08:13]} e6 {[%emt 0:00:13]} 12. O-O {[%emt 0:03:38]} Be7 {[%emt 0:00:05]} 13. Ne4 {[%emt 0:05:08] [#]} O-O $146 {[%emt 0:00:19]} ({Predecessor:} 13... b5 14. Nf4 Bb7 15. Qd3 O-O 16. Bd2 Nxf4 17. Bxf4 Bd5 18. Bxd5 Nxd5 19. Bg3 Qd7 {0-1 Girya,O (2342)-Muzychuk,A (2460) Moscow op-C 04th (Women) 2008 (8)}) 14. c4 $36 {[%emt 0:01:42][%mdl 2048] White is more active.} Nb6 {[%emt 0:04:07]} 15. N2c3 {[%emt 0:04:12]} Bd7 {[%emt 0:00:31]} 16. Be3 {[%emt 0:02:16]} Nc8 {[%emt 0:02:17] White leaves nothing to chance now.} 17. Qe2 {[%emt 0:05:21]} Nd6 {[%emt 0:05:41]} 18. Rad1 {[%emt 0:09:26] White is much more active.} Nf5 {[%emt 0:04:53]} 19. Bf2 {[%emt 0:03:31]} Qb8 {[%emt 0:03:45]} 20. g4 {[%emt 0:05:28]} Nd6 {[%emt 0:00:20]} (20... Nxe4 $142 21. fxe4 Nh4) 21. Nc5 $16 {[%emt 0:05:36]} b6 {[%emt 0:07:44]} (21... Bc8 $16 22. N5xa4 (22. N3xa4 b6 $17) 22... b6) 22. Nxd7 {[%emt 0:03:48]} Nxd7 {[%emt 0:00:05]} 23. c5 {[%emt 0:05:29]} Nc8 {[%emt 0:00:55] [#]} 24. Bxe6 $1 {[%emt 0:04:02][%mdl 512]} fxe6 {[%emt 0:02:47]} 25. Qxe6+ {[%emt 0:00:23]} Kh8 $2 {[%emt 0:00:02]} (25... Rf7 {might work better.}) 26. Qxd7 $18 {[%emt 0:00:44]} bxc5 {[%emt 0:00:19]} 27. Nd5 {[%emt 0:05:27]} ({Not} 27. Nxa4 c4 28. Rde1 Qb3 $18) ({Don't do} 27. dxc5 Ra5 28. Bd4 Rd8 $18) 27... Rd8 {[%emt 0:01:34]} 28. Qe6 {[%emt 0:02:32]} Bf8 {[%emt 0:16:21]} 29. dxc5 {[%emt 0:00:57]} Qb3 {[%emt 0:04:04]} (29... Na7 $142 30. Qf5 Qc8) 30. Qe3 {[%emt 0:03:05]} Qb7 {[%emt 0:08:45]} 31. Nb4 {[%emt 0:03:42]} Ne7 {[%emt 0:00:48]} 32. Qc3 {[%emt 0:00:21]} c6 {[%emt 0:00:54]} 33. Qc2 {[%emt 0:01:33]} Nd5 {[%emt 0:01:37]} 34. Nxd5 {[%emt 0:01:17]} cxd5 {[%emt 0:00:02]} 35. c6 {[%emt 0:00:23][%cal Bc5c6,Bc6c7][%mdl 32]} Qf7 {[%emt 0:00:07]} (35... Qc7 $142 36. Rd4 Rd6) 36. Bg3 {[%emt 0:00:37]} Qa7+ {[%emt 0:02:39]} 37. Kg2 {[%emt 0:00:09] White is clearly winning.} Rac8 {[%emt 0:00:33]} 38. c7 {[%emt 0:01:21]} Rd7 {[%emt 0:00:04]} 39. Rc1 {[%emt 0:00:39] Qf5 is the strong threat.} d4 {[%emt 0:08:07]} 40. Qf5 {[%emt 0:00:43] Weighted Error Value: White=0.34/Black=0.46} 1-0